fUST/lending_fUST_20250806
["ID","MTS","AMOUNT","RATE_DAILY","PERIOD"]
[377468510,1754418643009,-312.16666667,0.00029,10]
[377468511,1754418643020,-842.25606042,0.00029,10]
[377468512,1754418643031,-874.56269016,0.00029,2]
[377468513,1754418643043,-490.72,0.00029041,2]
[377468514,1754418643054,-460.0,0.00029041,2]
[377468515,1754418643065,-460.0,0.00029041,2]
[377468517,1754418643075,-564.39,0.00029041,2]
[377468518,1754418643086,-460.0,0.00029041,2]
[377468519,1754418643095,-460.0,0.00029041,2]
[377468520,1754418643106,-460.0,0.00029041,2]
[377468521,1754418643116,-452.54,0.00029041,2]
[377468522,1754418643127,-460.0,0.00029041,2]
[377468523,1754418643137,-895.54,0.00029041,2]
[377468524,1754418643148,-460.0,0.00029041,2]
[377468525,1754418643158,-460.0,0.00029041,2]
[377468526,1754418643169,-508.73,0.00029041,2]
[377468527,1754418643180,-460.0,0.00029041,2]
[377468528,1754418643191,-460.0,0.00029041,2]
[377468529,1754418643201,-420.74,0.00029041,2]
[377468530,1754418643211,-460.0,0.00029041,2]
[377468531,1754418643222,-340.34,0.00029041,2]
[377468532,1754418643232,-362.48,0.00029041,2]
[377468533,1754418643242,-460.0,0.00029041,2]
[377468534,1754418643252,-10473.5,0.00029041,2]
[377468535,1754418643262,-460.0,0.00029041,2]
[377468536,1754418643273,-292.24,0.00029041,2]
[377468537,1754418643283,-460.0,0.00029041,2]
[377468538,1754418643293,-460.0,0.00029041,2]
[377468539,1754418643304,-704.95,0.00029041,2]
[377468540,1754418643314,-485.85,0.00029041,2]
[377468541,1754418643324,-840.2,0.00029041,2]
[377468542,1754418643335,-460.0,0.00029041,2]
[377468543,1754418643346,-658.04,0.00029041,2]
[377468544,1754418643356,-460.0,0.00029041,2]
[377468545,1754418643367,-460.0,0.00029041,2]
[377468546,1754418643377,-828.25,0.00029041,2]
[377468547,1754418643388,-460.0,0.00029041,2]
[377468548,1754418643399,-460.0,0.00029041,2]
[377468549,1754418643411,-460.0,0.00029315,2]
[377468550,1754418643422,-460.0,0.00029315,2]
[377468551,1754418643432,-564.39,0.00029315,2]
[377468552,1754418643443,-460.0,0.00029315,2]
[377468553,1754418643454,-460.0,0.00029315,2]
[377468554,1754418643464,-198.92,0.00029315,2]
[377468555,1754418643475,-460.0,0.00029315,2]
[377468556,1754418643486,-895.54,0.00029315,2]
[377468557,1754418643496,-469.74,0.00029315,2]
[377468558,1754418643506,-460.0,0.00029315,2]
[377468559,1754418643517,-508.73,0.00029315,2]
[377468560,1754418643527,-460.0,0.00029315,2]
[377468561,1754418643538,-460.0,0.00029315,2]
[377468562,1754418643548,-460.0,0.00029315,2]
[377468563,1754418643560,-460.0,0.00029315,2]
[377468564,1754418643570,-460.0,0.00029315,2]
[377468565,1754418643581,-10473.5,0.00029315,2]
[377468566,1754418643591,-460.0,0.00029315,2]
[377468567,1754418643602,-460.0,0.00029315,2]
[377468568,1754418643612,-704.95,0.00029315,2]
[377468569,1754418643623,-485.85,0.00029315,2]
[377468570,1754418643633,-840.2,0.00029315,2]
[377468571,1754418643644,-460.0,0.00029315,2]
[377468572,1754418643655,-658.04,0.00029315,2]
[377468573,1754418643665,-460.0,0.00029315,2]
[377468574,1754418643676,-471.15,0.00029315,2]
[377468575,1754418643686,-828.25,0.00029315,2]
[377468576,1754418643696,-460.0,0.00029315,2]
[377468577,1754418643707,-347.23596729,0.00029315,2]
[377468578,1754418643717,-231.72586818,0.0002936,2]
[377468579,1754418643727,-12655.02535889,0.0002936,2]
[377468580,1754418643738,-461.15695721,0.0002936,2]
[377468581,1754418643748,-160.0,0.0002936,2]
[377468582,1754418643904,-160.0,0.00029373,2]
[377468583,1754418643911,-160.0,0.00029373,2]
[377468584,1754418643918,-312.16666667,0.00029373,2]
[377468585,1754418643926,-216.4206905,0.00029373,2]
[377468586,1754418643935,-160.0,0.00029373,2]
[377468587,1754418643943,-160.0,0.00029377,2]
[377468588,1754418643953,-160.0,0.00029377,2]
[377468589,1754418643962,-460.0,0.00029535,2]
[377468590,1754418643971,-460.0,0.00029589,2]
[377468591,1754418643980,-460.0,0.00029589,2]
[377468592,1754418643989,-564.39,0.00029589,2]
[377468593,1754418644002,-284.74,0.00029589,2]
[377468594,1754418644012,-460.0,0.00029589,2]
[377468595,1754418644021,-460.0,0.00029589,2]
[377468596,1754418644030,-895.54,0.00029589,2]
[377468597,1754418644041,-460.0,0.00029589,2]
[377468598,1754418644051,-508.73,0.00029589,2]
[377468599,1754418644061,-460.0,0.00029589,2]
[377468600,1754418644070,-460.0,0.00029589,2]
[377468601,1754418644081,-181.52,0.00029589,2]
[377468602,1754418644090,-460.0,0.00029589,2]
[377468603,1754418644099,-460.0,0.00029589,2]
[377468604,1754418644109,-10473.5,0.00029589,2]
[377468605,1754418644118,-460.0,0.00029589,2]
[377468606,1754418644128,-460.0,0.00029589,2]
[377468607,1754418644137,-704.95,0.00029589,2]
[377468608,1754418644146,-485.85,0.00029589,2]
[377468609,1754418644156,-840.2,0.00029589,2]
[377468610,1754418644165,-460.0,0.00029589,2]
[377468611,1754418644174,-658.04,0.00029589,2]
[377468612,1754418644183,-460.0,0.00029589,2]
[377468613,1754418644192,-828.25,0.00029589,2]
[377468614,1754418644202,-460.0,0.00029589,2]
[377468615,1754418644211,-460.0,0.00029863,2]
[377468616,1754418644220,-460.0,0.00029863,2]
[377468617,1754418644230,-564.39,0.00029863,2]
[377468618,1754418644240,-460.0,0.00029863,2]
[377468619,1754418644249,-460.0,0.00029863,2]
[377468620,1754418644259,-895.54,0.00029863,2]
[377468621,1754418644269,-247.8,0.00029863,2]
[377468622,1754418644279,-508.73,0.00029863,2]
[377468623,1754418644288,-460.0,0.00029863,2]
[377468624,1754418644297,-460.0,0.00029863,2]
[377468625,1754418644307,-460.0,0.00029863,2]
[377468626,1754418644316,-460.0,0.00029863,2]
[377468627,1754418644326,-10473.5,0.00029863,2]
[377468628,1754418644335,-460.0,0.00029863,2]
[377468629,1754418644344,-460.0,0.00029863,2]
[377468630,1754418644353,-704.95,0.00029863,2]
[377468631,1754418644362,-485.85,0.00029863,2]
[377468632,1754418644372,-840.2,0.00029863,2]
[377468633,1754418644381,-460.0,0.00029863,2]
[377468634,1754418644390,-658.04,0.00029863,2]
[377468635,1754418644400,-460.0,0.00029863,2]
[377468636,1754418644408,-828.25,0.00029863,2]
[377468637,1754418644417,-460.0,0.00029863,2]
[377468638,1754418644426,-133352.97074851,0.000299,2]
[377468639,1754418644436,-100004.26158883,0.0003,30]
[377468640,1754418644445,-1818.93773954,0.0003,4]
[377468641,1754418644455,-560.0,0.00030083,2]
[377468642,1754418644465,-10177.92685651,0.0003013,2]
[377468643,1754418644474,-65941.74377936,0.0003013,5]
[377468644,1754418644483,-460.0,0.00030136,2]
[377468645,1754418644492,-460.0,0.00030136,2]
[377468646,1754418644502,-564.39,0.00030136,2]
[377468647,1754418644511,-460.0,0.00030136,2]
[377468648,1754418644519,-460.0,0.00030136,2]
[377468649,1754418644529,-895.54,0.00030136,2]
[377468650,1754418644538,-508.73,0.00030136,2]
[377468651,1754418644548,-460.0,0.00030136,2]
[377468652,1754418644559,-460.0,0.00030136,2]
[377468653,1754418644568,-460.0,0.00030136,2]
[377468654,1754418644579,-460.0,0.00030136,2]
[377468655,1754418644588,-10473.5,0.00030136,2]
[377468656,1754418644598,-460.0,0.00030136,2]
[377468657,1754418644608,-460.0,0.00030136,2]
[377468658,1754418644617,-704.95,0.00030136,2]
[377468659,1754418644627,-485.85,0.00030136,2]
[377468660,1754418644636,-840.2,0.00030136,2]
[377468661,1754418644647,-460.0,0.00030136,2]
[377468662,1754418644658,-658.04,0.00030136,2]
[377468663,1754418644670,-460.0,0.00030136,2]
[377468664,1754418644680,-828.25,0.00030136,2]
[377468665,1754418644690,-460.0,0.00030136,2]
[377468666,1754418644702,-961.20172144,0.000302,2]
[377468667,1754418644713,-460.0,0.0003041,2]
[377468668,1754418644722,-460.0,0.0003041,2]
[377468669,1754418644731,-564.39,0.0003041,2]
[377468670,1754418644741,-460.0,0.0003041,2]
[377468671,1754418644750,-460.0,0.0003041,2]
[377468672,1754418644760,-895.54,0.0003041,2]
[377468673,1754418644770,-508.73,0.0003041,2]
[377468674,1754418644779,-460.0,0.0003041,2]
[377468675,1754418644788,-460.0,0.0003041,2]
[377468676,1754418644799,-460.0,0.0003041,2]
[377468677,1754418644810,-460.0,0.0003041,2]
[377468678,1754418644820,-10473.5,0.0003041,2]
[377468679,1754418644829,-460.0,0.0003041,2]
[377468680,1754418644838,-460.0,0.0003041,2]
[377468681,1754418644847,-704.95,0.0003041,2]
[377468682,1754418644857,-485.85,0.0003041,2]
[377468683,1754418644867,-840.2,0.0003041,2]
[377468684,1754418644876,-174.0,0.0003041,2]
[377468685,1754418644886,-658.04,0.0003041,2]
[377468686,1754418644895,-460.0,0.0003041,2]
[377468687,1754418644905,-828.25,0.0003041,2]
[377468688,1754418644914,-460.0,0.0003041,2]
[377468689,1754418644924,-775.6,0.000305,2]
[377468690,1754418644933,-660.0,0.00030631,2]
[377468691,1754418644945,-460.0,0.00030684,2]
[377468692,1754418644954,-460.0,0.00030684,2]
[377468693,1754418644964,-564.39,0.00030684,2]
[377468694,1754418644973,-496.38,0.00030684,2]
[377468695,1754418644983,-460.0,0.00030684,2]
[377468696,1754418644993,-895.54,0.00030684,2]
[377468697,1754418645008,-508.73,0.00030684,2]
[377468698,1754418645018,-460.0,0.00030684,2]
[377468699,1754418645027,-460.0,0.00030684,2]
[377468700,1754418645039,-460.0,0.00030684,2]
[377468701,1754418645049,-340.9721168,0.00030684,2]
[377468702,1754418645061,-10473.5,0.00030684,2]
[377468703,1754418645071,-460.0,0.00030684,2]
[377468704,1754418645082,-460.0,0.00030684,2]
[377468705,1754418645091,-704.95,0.00030684,2]
[377468706,1754418645100,-485.85,0.00030684,2]
[377468707,1754418645110,-840.2,0.00030684,2]
[377468708,1754418645119,-658.04,0.00030684,2]
[377468709,1754418645128,-460.0,0.00030684,2]
[377468710,1754418645138,-828.25,0.00030684,2]
[377468711,1754418645148,-460.0,0.00030684,2]
[377468712,1754418645157,-221.8,0.00030958,2]
[377468713,1754418645167,-194.54,0.00030958,2]
[377468714,1754418645176,-564.39,0.00030958,2]
[377468715,1754418645185,-529.32501109,0.00030958,2]
[377468716,1754418645195,-895.54,0.00030958,2]
[377468717,1754418645205,-508.73,0.00030958,2]
[377468718,1754418645214,-460.0,0.00030958,2]
[377468719,1754418645223,-460.0,0.00030958,2]
[377468720,1754418645232,-460.0,0.00030958,2]
[377468721,1754418645241,-10473.5,0.00030958,2]
[377468722,1754418645250,-460.0,0.00030958,2]
[377468723,1754418645259,-339.89,0.00030958,2]
[377468724,1754418645268,-704.95,0.00030958,2]
[377468725,1754418645277,-485.85,0.00030958,2]
[377468726,1754418645286,-840.2,0.00030958,2]
[377468727,1754418645295,-658.04,0.00030958,2]
[377468728,1754418645306,-460.0,0.00030958,2]
[377468729,1754418645315,-828.25,0.00030958,2]
[377468730,1754418645324,-460.0,0.00030958,2]
[377468731,1754418645333,-760.0,0.00031179,2]
[377468732,1754418645342,-200.0,0.00031197,15]
[377468733,1754418645350,-200.0,0.00031197,15]
[377468734,1754418645359,-300.0,0.00031197,15]
[377468735,1754418645369,-564.39,0.00031232,2]
[377468736,1754418645378,-895.54,0.00031232,2]
[377468737,1754418645388,-508.73,0.00031232,2]
[377468738,1754418645397,-460.0,0.00031232,2]
[377468739,1754418645406,-460.0,0.00031232,2]
[377468740,1754418645415,-461.22495901,0.00031232,2]
[377468741,1754418645424,-10473.5,0.00031232,2]
[377468742,1754418645433,-460.0,0.00031232,2]
[377468743,1754418645442,-704.95,0.00031232,2]
[377468744,1754418645452,-485.85,0.00031232,2]
[377468745,1754418645460,-840.2,0.00031232,2]
[377468746,1754418645470,-658.04,0.00031232,2]
[377468747,1754418645479,-460.0,0.00031232,2]
[377468748,1754418645488,-460.0,0.00031232,2]
[377468749,1754418645496,-823.0,0.00031373,2]
[377468750,1754418645506,-564.39,0.00031506,2]
[377468751,1754418645514,-895.54,0.00031506,2]
[377468752,1754418645524,-508.73,0.00031506,2]
[377468753,1754418645532,-460.0,0.00031506,2]
[377468754,1754418645542,-460.0,0.00031506,2]
[377468755,1754418645551,-10473.5,0.00031506,2]
[377468756,1754418645563,-547.81024814,0.00031506,2]
[377468757,1754418645573,-704.95,0.00031506,2]
[377468758,1754418645582,-485.85,0.00031506,2]
[377468759,1754418645592,-840.2,0.00031506,2]
[377468760,1754418645601,-658.04,0.00031506,2]
[377468761,1754418645610,-460.0,0.00031506,2]
[377468762,1754418645619,-150.0,0.00031712,10]
[377468763,1754418645629,-2448793.76746253,0.00031712,20]
[377468764,1754418645638,-2155.37341322,0.00031712,5]
[377468765,1754418645647,-600.26488844,0.00031712,5]
[377468766,1754418645656,-977.51551233,0.00031712,2]
[377468767,1754418645666,-10002.23656479,0.00031712,2]
[377468768,1754418645675,-513.61586701,0.00031712,7]
[377468769,1754418645684,-162.81091588,0.00031712,2]
[377468770,1754418645693,-291.87203532,0.00031712,2]
[377468771,1754418645702,-10019.90827786,0.00031712,2]
[377468772,1754418645711,-1800.17264384,0.00031712,2]
[377468774,1754418645720,-540.46807936,0.00031727,2]
[377468775,1754418645729,-564.39,0.0003178,2]
[377468776,1754418645738,-895.54,0.0003178,2]
[377468777,1754418645747,-508.73,0.0003178,2]
[377468778,1754418645756,-460.0,0.0003178,2]
[377468779,1754418645765,-460.0,0.0003178,2]
[377468780,1754418645774,-10473.5,0.0003178,2]
[377468781,1754418645784,-704.95,0.0003178,2]
[377468782,1754418645794,-485.85,0.0003178,2]
[377468783,1754418645810,-840.2,0.0003178,2]
[377468784,1754418645819,-658.04,0.0003178,2]
[377468785,1754418645829,-460.0,0.0003178,2]
[377468786,1754418645839,-564.39,0.00032054,2]
[377468787,1754418645848,-895.54,0.00032054,2]
[377468788,1754418645857,-508.73,0.00032054,2]
[377468789,1754418645867,-460.0,0.00032054,2]
[377468790,1754418645876,-460.0,0.00032054,2]
[377468791,1754418645885,-10473.5,0.00032054,2]
[377468792,1754418645895,-704.95,0.00032054,2]
[377468793,1754418645904,-485.85,0.00032054,2]
[377468794,1754418645914,-840.2,0.00032054,2]
[377468795,1754418645923,-658.04,0.00032054,2]
[377468796,1754418645932,-460.0,0.00032054,2]
[377468797,1754418645941,-564.39,0.00032328,2]
[377468798,1754418645950,-895.54,0.00032328,2]
[377468799,1754418645959,-508.73,0.00032328,2]
[377468800,1754418645968,-460.0,0.00032328,2]
[377468801,1754418645978,-460.0,0.00032328,2]
[377468802,1754418645987,-10473.5,0.00032328,2]
[377468803,1754418645999,-704.95,0.00032328,2]
[377468804,1754418646008,-485.85,0.00032328,2]
[377468805,1754418646017,-840.2,0.00032328,2]
[377468806,1754418646026,-658.04,0.00032328,2]
[377468807,1754418646035,-460.0,0.00032328,2]
[377468808,1754418646044,-250.0,0.00032569,2]
[377468809,1754418646054,-564.39,0.00032602,2]
[377468810,1754418646063,-895.54,0.00032602,2]
[377468811,1754418646075,-508.73,0.00032602,2]
[377468812,1754418646085,-460.0,0.00032602,2]
[377468813,1754418646094,-460.0,0.00032602,2]
[377468814,1754418646103,-10473.5,0.00032602,2]
[377468815,1754418646113,-704.95,0.00032602,2]
[377468816,1754418646123,-485.85,0.00032602,2]
[377468817,1754418646132,-840.2,0.00032602,2]
[377468818,1754418646142,-658.04,0.00032602,2]
[377468819,1754418646151,-460.0,0.00032602,2]
[377468820,1754418646160,-564.39,0.00032876,2]
[377468821,1754418646170,-895.54,0.00032876,2]
[377468822,1754418646179,-508.73,0.00032876,2]
[377468823,1754418646188,-460.0,0.00032876,2]
[377468824,1754418646197,-460.0,0.00032876,2]
[377468825,1754418646207,-500.0,0.00032876,120]
[377468826,1754418646217,-10473.5,0.00032876,2]
[377468827,1754418646227,-704.95,0.00032876,2]
[377468828,1754418646236,-485.85,0.00032876,2]
[377468829,1754418646245,-2138.39,0.00032876,120]
[377468830,1754418646255,-840.2,0.00032876,2]
[377468831,1754418646264,-658.04,0.00032876,2]
[377468832,1754418646273,-460.0,0.00032876,2]
[377468833,1754418646283,-298.31493616,0.00032876,2]
[377468834,1754418646293,-500.0,0.00032876,2]
[377468835,1754418646303,-500.0,0.00032876,2]
[377468836,1754418646312,-500.0,0.00032876,2]
[377468837,1754418646323,-339.902248,0.00032876,2]
[377468838,1754418646332,-500.0,0.00032876,2]
[377468839,1754418646342,-500.0,0.00032877,5]
[377468840,1754418646351,-3552.81,0.000329,7]
[377468841,1754418646361,-1458.65,0.000329,7]
[377468842,1754418646371,-19414.75,0.000329,14]
[377468843,1754418646381,-38947.64,0.000329,14]
[377468844,1754418646390,-202.67740798,0.00033,21]
[377468845,1754418646400,-1000.0,0.00033,120]
[377468846,1754418646409,-564.39,0.0003315,2]
[377468847,1754418646418,-895.54,0.0003315,2]
[377468848,1754418646428,-508.73,0.0003315,2]
[377468849,1754418646437,-234.21981265,0.0003315,2]
[377468850,1754418646448,-460.0,0.0003315,2]
[377468851,1754418646459,-10473.5,0.0003315,2]
[377468852,1754418646469,-704.95,0.0003315,2]
[377468853,1754418646479,-485.85,0.0003315,2]
[377468854,1754418646488,-840.2,0.0003315,2]
[377468855,1754418646497,-658.04,0.0003315,2]
[377468856,1754418646507,-361.15837642,0.0003315,2]
[377468860,1754418647107,-500.0,0.00024649,2]
[377468861,1754418647117,-500.0,0.00024649,2]
[377468862,1754418647126,-500.0,0.00024649,2]
[377468863,1754418647135,-303.84197912,0.00024649,2]
[377468864,1754418647144,-516.68775025,0.00024649,2]
[377468865,1754418647154,-366.72116026,0.00024649,2]
[377468866,1754418647163,-500.0,0.00024649,2]
[377468867,1754418647173,-214.24140155,0.00024649,2]
[377468868,1754418647183,-500.0,0.00024649,2]
[377468869,1754418647192,-500.0,0.00024649,2]
[377468870,1754418647201,-500.0,0.00024649,2]
[377468871,1754418647210,-500.0,0.00024649,2]
[377468872,1754418647220,-500.0,0.00024649,2]
[377468873,1754418647229,-500.0,0.00024649,2]
[377468874,1754418647238,-500.0,0.00024649,2]
[377468875,1754418647248,-500.0,0.00024649,2]
[377468876,1754418647257,-500.0,0.00024649,2]
[377468877,1754418647266,-500.0,0.00024649,2]
[377468878,1754418647275,-500.0,0.00024649,2]
[377468879,1754418647285,-500.0,0.00024649,2]
[377468880,1754418647293,-172.3255564,0.00024649,2]
[377468881,1754418647304,-500.0,0.00024649,2]
[377468882,1754418647313,-500.0,0.00024649,2]
[377468883,1754418647323,-500.0,0.00024649,2]
[377468884,1754418647332,-500.0,0.00024649,2]
[377468885,1754418647341,-500.0,0.00024649,2]
[377468886,1754418647350,-500.0,0.00024649,2]
[377468887,1754418647360,-500.0,0.00024649,2]
[377468888,1754418647369,-500.0,0.00024649,2]
[377468889,1754418647378,-500.0,0.00024649,2]
[377468890,1754418647387,-500.0,0.00024649,2]
[377468891,1754418647397,-500.0,0.00024649,2]
[377468892,1754418647407,-500.0,0.00024649,2]
[377468893,1754418647416,-500.0,0.00024649,2]
[377468894,1754418647426,-500.0,0.00024649,2]
[377468895,1754418647435,-500.0,0.00024649,2]
[377468896,1754418647444,-500.0,0.00024649,2]
[377468897,1754418647454,-500.0,0.00024649,2]
[377468898,1754418647463,-500.0,0.00024649,2]
[377468899,1754418647473,-500.0,0.00024649,2]
[377468900,1754418647482,-500.0,0.00024649,2]
[377468901,1754418647491,-500.0,0.00024649,2]
[377468902,1754418647501,-373.33169173,0.00024649,2]
[377468903,1754418647511,-275.4371425,0.00024649,2]
[377468904,1754418647520,-500.0,0.00024649,2]
[377468905,1754418647530,-500.0,0.00024649,2]
[377468906,1754418647539,-500.0,0.00024649,2]
[377468907,1754418647549,-500.0,0.00024649,2]
[377468908,1754418647558,-500.0,0.00024649,2]
[377468909,1754418647568,-500.0,0.00024649,2]
[377468910,1754418647577,-460.0,0.00027397,2]
[377468911,1754418647587,-460.0,0.00027671,2]
[377468912,1754418647596,-460.0,0.00027945,2]
[377468913,1754418647606,-828.25,0.00031232,2]
[377468914,1754418647615,-286.15,0.00031506,2]
[377468915,1754418647625,-828.25,0.00031506,2]
[377468916,1754418647634,-828.25,0.0003178,2]
[377468917,1754418647643,-828.25,0.00032054,2]
[377468918,1754418647653,-828.25,0.00032328,2]
[377468919,1754418647662,-828.25,0.00032602,2]
[377468920,1754418647671,-185.81395071,0.00032876,2]
[377468921,1754418647681,-500.0,0.00032876,2]
[377468922,1754418647690,-500.0,0.00032876,2]
[377468923,1754418647700,-500.0,0.00032876,2]
[377468924,1754418647709,-430.37018797,0.00032876,2]
[377468925,1754418647719,-500.0,0.00032876,2]
[377468926,1754418647728,-828.25,0.00032876,2]
[377468927,1754418647737,-98.84162358,0.0003315,2]
[377468928,1754418647747,-346.182649,0.00033165,2]
[377468929,1754418647756,-564.39,0.00033424,2]
[377468930,1754418647765,-895.54,0.00033424,2]
[377468931,1754418647774,-508.73,0.00033424,2]
[377468932,1754418647784,-331.80703733,0.00033424,2]
[377468933,1754418647793,-10473.5,0.00033424,2]
[377468934,1754418647803,-704.95,0.00033424,2]
[377468935,1754418647813,-485.85,0.00033424,2]
[377468936,1754418647822,-840.2,0.00033424,2]
[377468937,1754418647831,-658.04,0.00033424,2]
[377468938,1754418647840,-430.7,0.00033424,2]
[377468939,1754418647850,-5000.0,0.00033426,4]
[377468940,1754418647859,-200.0,0.000336,120]
[377468941,1754418647868,-367.56719,0.000336,120]
[377468942,1754418647878,-442.3664,0.000336,120]
[377468943,1754418647887,-200.0,0.00033656,120]
[377468944,1754418647897,-564.53,0.00033698,2]
[377468945,1754418647906,-895.72,0.00033698,2]
[377468946,1754418647915,-508.83,0.00033698,2]
[377468947,1754418647925,-10473.52998785,0.00033698,2]
[377468948,1754418647935,-705.08716557,0.00033698,2]
[377468949,1754418647944,-485.93412342,0.00033698,2]
[377468950,1754418647954,-2138.39,0.00033698,120]
[377468951,1754418647963,-840.30944831,0.00033698,2]
[377468952,1754418647973,-658.24080023,0.00033698,2]
[377468953,1754418647983,-45836.33976598,0.000339,7]
[377468954,1754418648070,-828.25,0.0003315,2]
[377468955,1754418648080,-2615.60223872,0.000339,7]
[377468956,1754418648092,-309.79259189,0.000339,7]
[377468957,1754418648203,-828.25,0.00033424,2]
[377468958,1754418648213,-828.47510058,0.00033698,2]
[377468959,1754418648221,-7795.36310449,0.000339,7]
[377468960,1754418648273,-460.0,0.00027397,2]
[377468961,1754418648282,-460.0,0.00027671,2]
[377468962,1754418648291,-460.0,0.00027945,2]
[377468963,1754418648301,-329.61,0.00028219,2]
[377468964,1754418648311,-460.0,0.00028219,2]
[377468965,1754418648321,-460.0,0.00028493,2]
[377468966,1754418648330,-34289.47835949,0.000339,7]
[377468967,1754418648341,-11059.88631597,0.000339,7]
[377468968,1754418648352,-1231.20267109,0.000339,7]
[377468969,1754418648364,-1898.1888978,0.000339,7]
[377468970,1754418648375,-18183.42870934,0.000339,7]
[377468971,1754418648386,-257.18451542,0.000339,7]
[377468972,1754418648398,-20503.01364468,0.000339,7]
[377468973,1754418648407,-1235.30773584,0.0003398,2]
[377468974,1754418648419,-764.69226416,0.0003398,2]
[377468975,1754418648429,-1152.0,0.00034,2]
[377468976,1754418648438,-200.0,0.000342,15]
[377468977,1754418648448,-200.0,0.000342,15]
[377468978,1754418648458,-200.0,0.000342,15]
[377468979,1754418648468,-379.0,0.000342,15]
[377468980,1754418648477,-500.0,0.00034246,120]
[377468981,1754418648486,-2138.39,0.0003452,120]
[377468982,1754418648495,-200.0,0.00034977,120]
[377468983,1754418648505,-4525.69782576,0.00035,2]
[377468984,1754418648521,-160.0,0.0002579,3]
[377468985,1754418648531,-6091.71241448,0.00035,2]
[377468986,1754418648540,-651.22009528,0.00035,2]
[377468987,1754418648549,-211.0857049,0.00035,30]
[377468988,1754418648560,-1001.21176804,0.00035,120]
[377468989,1754418648569,-211.09,0.00035125,2]
[377468990,1754418648579,-971.0,0.00035159,2]
[377468991,1754418648588,-2148.0,0.00035159,2]
[377468992,1754418648598,-636.0,0.00035159,2]
[377468993,1754418648607,-408.0,0.00035159,2]
[377468994,1754418648616,-2138.39,0.00035342,120]
[377468995,1754418648625,-2001.60380086,0.000355,14]
[377468996,1754418648634,-200.0,0.000355,120]
[377468997,1754418648644,-442.3664,0.000355,120]
[377468998,1754418648653,-500.0,0.00035616,120]
[377468999,1754418648663,-1000.0,0.00035616,5]
[377469000,1754418648672,-14741.43347492,0.0003568,2]
[377469002,1754418755863,-223.0,0.00024648,2]
[377469003,1754418755884,-300.0,0.00024648,2]
[377469004,1754418755909,-500.0,0.00024649,2]
[377469005,1754418755933,-500.0,0.00024649,2]
[377469006,1754418755956,-500.0,0.00024649,2]
[377469007,1754418755977,-500.0,0.00024649,2]
[377469008,1754418755999,-500.0,0.00024649,2]
[377469009,1754418756021,-335.61734068,0.00024649,2]
[377469010,1754418756046,-500.0,0.00024649,2]
[377469011,1754418756068,-155.83879984,0.00024649,2]
[377469012,1754418756093,-300.0,0.00024649,2]
[377469013,1754418756115,-500.0,0.00024649,2]
[377469014,1754418756136,-500.0,0.00024649,2]
[377469015,1754418756159,-500.0,0.00024649,2]